[Event "Titled Tuesday Blitz June 20 Late 2023"]
[White "Przybylski, Wojciech"]
[Black "Romero Ruscalleda, Josep"]
[WhiteFideId "1117599"]
[BlackFideId "2231859"]
[WhiteElo "2228"]
[BlackElo "2183"]
[Result "1-0"]
[Round "2"]
[TimeControl "180+2"]
[Date "2023.06.20"]
[WhiteClock "0:00:06"]
[BlackClock "0:00:00"]
[Board "154"]

1. d4 {[%clk 0:03:00]}  g6 {[%clk 0:03:00]} 2. g3 {[%clk 0:03:00]}  Bg7 {[%clk 0:03:01]} 3. Bg2 {[%clk 0:03:00]}  d6 {[%clk 0:03:01]} 4. Nf3 {[%clk 0:03:00]}  Nc6 {[%clk 0:03:00]} 5. O-O {[%clk 0:02:59]}  e5 {[%clk 0:02:59]} 6. c3 {[%clk 0:02:54]}  Bf5 {[%clk 0:02:45]} 7. Re1 {[%clk 0:02:50]}  Qd7 {[%clk 0:02:41]} 8. e4 {[%clk 0:02:48]}  Bg4 {[%clk 0:02:38]} 9. Be3 {[%clk 0:02:48]}  Nge7 {[%clk 0:02:24]} 10. d5 {[%clk 0:02:42]}  Nd8 {[%clk 0:02:20]} 11. Nbd2 {[%clk 0:02:36]}  O-O {[%clk 0:02:16]} 12. Qb3 {[%clk 0:02:27]}  h6 {[%clk 0:02:07]} 13. c4 {[%clk 0:02:23]}  b6 {[%clk 0:02:06]} 14. Qd3 {[%clk 0:02:17]}  f5 {[%clk 0:01:57]} 15. h3 {[%clk 0:02:11]}  f4 {[%clk 0:01:48]} 16. hxg4 {[%clk 0:02:08]}  fxe3 {[%clk 0:01:46]} 17. Rxe3 {[%clk 0:02:07]}  Qxg4 {[%clk 0:01:46]} 18. b4 {[%clk 0:01:58]}  a5 {[%clk 0:01:45]} 19. c5 {[%clk 0:01:44]}  axb4 {[%clk 0:01:36]} 20. c6 {[%clk 0:01:44]}  Ra3 {[%clk 0:01:29]} 21. Qe2 {[%clk 0:01:44]}  Rxe3 {[%clk 0:01:12]} 22. Qxe3 {[%clk 0:01:43]}  Nf7 {[%clk 0:01:03]} 23. a4 {[%clk 0:01:19]}  bxa3 {[%clk 0:01:00]} 24. Rxa3 {[%clk 0:01:18]}  h5 {[%clk 0:00:40]} 25. Qe1 {[%clk 0:00:29]}  Bh6 {[%clk 0:00:31]} 26. Ra7 {[%clk 0:00:28]}  Qc8 {[%clk 0:00:16]} 27. Nc4 {[%clk 0:00:26]}  Ng5 {[%clk 0:00:15]} 28. Nh4 {[%clk 0:00:25]}  Rf7 {[%clk 0:00:11]} 29. Qa1 {[%clk 0:00:23]}  Kg7 {[%clk 0:00:10]} 30. Ra8 {[%clk 0:00:23]}  Qg4 {[%clk 0:00:10]} 31. Ne3 {[%clk 0:00:22]}  Qe2 {[%clk 0:00:09]} 32. Qf1 {[%clk 0:00:19]}  Qd2 {[%clk 0:00:09]} 33. Re8 {[%clk 0:00:13]}  Nxe4 {[%clk 0:00:08]} 34. Nc4 {[%clk 0:00:11]}  Qxf2+ {[%clk 0:00:07]} 35. Qxf2 {[%clk 0:00:11]}  Nxf2 {[%clk 0:00:07]} 36. Nxb6 {[%clk 0:00:06]}  cxb6 {[%clk 0:00:00]} 37. c7 {[%clk 0:00:06]} 1-0


[Site "https://www.chess.com"]

[Event "Titled Tuesday Blitz June 20 Late 2023"]
[White "Vifleemskaia, Svetlana"]
[Black "Bilan, Danila"]
[WhiteFideId "4129490"]
[BlackFideId "24161918"]
[WhiteElo "1930"]
[BlackElo "2146"]
[Result "0-1"]
[Round "2"]
[TimeControl "180+2"]
[Date "2023.06.20"]
[WhiteClock "0:00:00"]
[BlackClock "0:00:17"]
[Board "155"]

1. d4 {[%clk 0:02:54]}  d5 {[%clk 0:02:59]} 2. c4 {[%clk 0:02:53]}  c6 {[%clk 0:02:58]} 3. cxd5 {[%clk 0:02:53]}  cxd5 {[%clk 0:02:58]} 4. Bf4 {[%clk 0:02:54]}  Nc6 {[%clk 0:02:57]} 5. Nc3 {[%clk 0:02:54]}  a6 {[%clk 0:02:56]} 6. e3 {[%clk 0:02:53]}  Nf6 {[%clk 0:02:54]} 7. Bd3 {[%clk 0:02:51]}  g6 {[%clk 0:02:49]} 8. h3 {[%clk 0:02:50]}  Bf5 {[%clk 0:02:49]} 9. Nf3 {[%clk 0:02:49]}  Bg7 {[%clk 0:02:48]} 10. O-O {[%clk 0:02:47]}  O-O {[%clk 0:02:49]} 11. Rc1 {[%clk 0:02:42]}  Rc8 {[%clk 0:02:48]} 12. Ne5 {[%clk 0:02:41]}  Nxe5 {[%clk 0:02:35]} 13. Bxe5 {[%clk 0:02:42]}  b5 {[%clk 0:02:30]} 14. Bxf5 {[%clk 0:02:36]}  gxf5 {[%clk 0:02:30]} 15. Qd3 {[%clk 0:02:36]}  e6 {[%clk 0:02:28]} 16. Ne2 {[%clk 0:02:32]}  Qa5 {[%clk 0:02:20]} 17. a3 {[%clk 0:02:20]}  Ne4 {[%clk 0:02:16]} 18. b4 {[%clk 0:02:10]}  Qb6 {[%clk 0:02:11]} 19. f3 {[%clk 0:01:58]}  Nd6 {[%clk 0:01:47]} 20. Bxd6 {[%clk 0:01:56]}  Qxd6 {[%clk 0:01:48]} 21. Rc5 {[%clk 0:01:54]}  Bf6 {[%clk 0:01:22]} 22. Rfc1 {[%clk 0:01:48]}  Qd7 {[%clk 0:01:19]} 23. Qc3 {[%clk 0:01:32]}  Ra8 {[%clk 0:01:19]} 24. Rc7 {[%clk 0:01:30]}  Qd8 {[%clk 0:01:14]} 25. Qc6 {[%clk 0:01:26]}  Bg5 {[%clk 0:01:05]} 26. f4 {[%clk 0:01:18]}  Bh6 {[%clk 0:00:55]} 27. g3 {[%clk 0:01:07]}  Qf6 {[%clk 0:00:48]} 28. Kf2 {[%clk 0:01:06]}  Rfb8 {[%clk 0:00:38]} 29. Rb7 {[%clk 0:00:55]}  Re8 {[%clk 0:00:34]} 30. Ng1 {[%clk 0:00:50]}  Bf8 {[%clk 0:00:32]} 31. Nf3 {[%clk 0:00:47]}  a5 {[%clk 0:00:27]} 32. Rxb5 {[%clk 0:00:40]}  axb4 {[%clk 0:00:27]} 33. axb4 {[%clk 0:00:41]}  Ra2+ {[%clk 0:00:27]} 34. Rc2 {[%clk 0:00:41]}  Rxc2+ {[%clk 0:00:26]} 35. Qxc2 {[%clk 0:00:40]}  Qd8 {[%clk 0:00:26]} 36. Qc6 {[%clk 0:00:32]}  Re7 {[%clk 0:00:22]} 37. Rb7 {[%clk 0:00:24]}  Qa8 {[%clk 0:00:18]} 38. Rxe7 {[%clk 0:00:10]}  Qxc6 {[%clk 0:00:18]} 39. Ra7 {[%clk 0:00:09]}  Bxb4 {[%clk 0:00:16]} 40. Ne5 {[%clk 0:00:08]}  Qc2+ {[%clk 0:00:17]} 41. Kf3 {[%clk 0:00:07]}  Qd1+ {[%clk 0:00:17]} 42. Kf2 {[%clk 0:00:08]}  Be1+ {[%clk 0:00:17]} 43. Kg2 {[%clk 0:00:00]}  Qe2+ {[%clk 0:00:17]} 0-1


[Site "https://www.chess.com"]

[Event "Titled Tuesday Blitz June 20 Late 2023"]
[White "Alexikov, Alexander"]
[Black "Papayan, Oleg"]
[WhiteFideId "14103958"]
[BlackFideId "4193911"]
[WhiteElo "2186"]
[BlackElo "2167"]
[Result "0-1"]
[Round "2"]
[TimeControl "180+2"]
[Date "2023.06.20"]
[WhiteClock "0:00:00"]
[BlackClock "0:00:02"]
[Board "156"]

1. e4 {[%clk 0:03:00]}  e5 {[%clk 0:03:00]} 2. Nf3 {[%clk 0:03:00]}  Nc6 {[%clk 0:03:00]} 3. c3 {[%clk 0:03:00]}  d5 {[%clk 0:02:59]} 4. Qa4 {[%clk 0:02:59]}  Qd6 {[%clk 0:02:59]} 5. Bb5 {[%clk 0:02:56]}  Bd7 {[%clk 0:02:46]} 6. d4 {[%clk 0:02:46]}  exd4 {[%clk 0:02:33]} 7. exd5 {[%clk 0:02:42]}  Qxd5 {[%clk 0:02:31]} 8. cxd4 {[%clk 0:02:42]}  Qe4+ {[%clk 0:02:25]} 9. Be3 {[%clk 0:02:41]}  Bb4+ {[%clk 0:02:03]} 10. Nc3 {[%clk 0:02:39]}  Nge7 {[%clk 0:02:01]} 11. O-O {[%clk 0:02:35]}  Bxc3 {[%clk 0:02:02]} 12. bxc3 {[%clk 0:02:34]}  a6 {[%clk 0:01:55]} 13. Rfe1 {[%clk 0:02:09]}  O-O {[%clk 0:01:51]} 14. Be2 {[%clk 0:02:00]}  Nd5 {[%clk 0:01:31]} 15. Bd2 {[%clk 0:01:44]}  Nb6 {[%clk 0:00:32]} 16. Qa3 {[%clk 0:01:09]}  Qf5 {[%clk 0:00:27]} 17. c4 {[%clk 0:01:03]}  Rfe8 {[%clk 0:00:24]} 18. Bd3 {[%clk 0:00:46]}  Qh5 {[%clk 0:00:24]} 19. d5 {[%clk 0:00:40]}  Ne5 {[%clk 0:00:21]} 20. Nxe5 {[%clk 0:00:39]}  Rxe5 {[%clk 0:00:22]} 21. Rxe5 {[%clk 0:00:38]}  Qxe5 {[%clk 0:00:22]} 22. Re1 {[%clk 0:00:36]}  Qd4 {[%clk 0:00:18]} 23. Qc3 {[%clk 0:00:35]}  Qxc3 {[%clk 0:00:17]} 24. Bxc3 {[%clk 0:00:35]}  Re8 {[%clk 0:00:17]} 25. Rxe8+ {[%clk 0:00:33]}  Bxe8 {[%clk 0:00:18]} 26. Be5 {[%clk 0:00:30]}  c6 {[%clk 0:00:15]} 27. Bc7 {[%clk 0:00:29]}  Na8 {[%clk 0:00:11]} 28. Bd8 {[%clk 0:00:26]}  cxd5 {[%clk 0:00:10]} 29. cxd5 {[%clk 0:00:26]}  f6 {[%clk 0:00:08]} 30. Bf5 {[%clk 0:00:22]}  Bg6 {[%clk 0:00:07]} 31. Be6+ {[%clk 0:00:21]}  Bf7 {[%clk 0:00:07]} 32. f4 {[%clk 0:00:18]}  Bxe6 {[%clk 0:00:07]} 33. dxe6 {[%clk 0:00:18]}  Kf8 {[%clk 0:00:08]} 34. f5 {[%clk 0:00:18]}  Ke8 {[%clk 0:00:07]} 35. Ba5 {[%clk 0:00:16]}  b6 {[%clk 0:00:07]} 36. Bb4 {[%clk 0:00:16]}  Nc7 {[%clk 0:00:07]} 37. g4 {[%clk 0:00:12]}  Nd5 {[%clk 0:00:08]} 38. Bd2 {[%clk 0:00:12]}  Ke7 {[%clk 0:00:05]} 39. Kf2 {[%clk 0:00:12]}  Kd6 {[%clk 0:00:05]} 40. Kf3 {[%clk 0:00:12]}  Kc5 {[%clk 0:00:05]} 41. Ke4 {[%clk 0:00:10]}  a5 {[%clk 0:00:03]} 42. h4 {[%clk 0:00:09]}  h6 {[%clk 0:00:02]} 43. g5 {[%clk 0:00:08]}  hxg5 {[%clk 0:00:03]} 44. hxg5 {[%clk 0:00:07]}  fxg5 {[%clk 0:00:02]} 45. Bxg5 {[%clk 0:00:06]}  Kd6 {[%clk 0:00:03]} 46. Bd8 {[%clk 0:00:04]}  a4 {[%clk 0:00:02]} 47. a3 {[%clk 0:00:02]}  b5 {[%clk 0:00:03]} 48. Kd4 {[%clk 0:00:00]}  Nf4 {[%clk 0:00:02]} 0-1


[Site "https://www.chess.com"]

[Event "Titled Tuesday Blitz June 20 Late 2023"]
[White "Jovic, Stanoje"]
[Black "Ardila, Oscar Humberto"]
[WhiteFideId "905020"]
[BlackFideId "4404742"]
[WhiteElo "2236"]
[BlackElo "1912"]
[Result "1-0"]
[Round "2"]
[TimeControl "180+2"]
[Date "2023.06.20"]
[WhiteClock "0:00:09"]
[BlackClock "0:00:02"]
[Board "157"]

1. c4 {[%clk 0:03:00]}  Nf6 {[%clk 0:02:58]} 2. g3 {[%clk 0:03:01]}  g6 {[%clk 0:02:59]} 3. Bg2 {[%clk 0:03:01]}  Bg7 {[%clk 0:02:59]} 4. Nc3 {[%clk 0:03:01]}  O-O {[%clk 0:02:59]} 5. Nf3 {[%clk 0:03:01]}  d6 {[%clk 0:03:00]} 6. O-O {[%clk 0:03:02]}  Nbd7 {[%clk 0:03:00]} 7. d3 {[%clk 0:03:02]}  e5 {[%clk 0:03:01]} 8. Rb1 {[%clk 0:03:02]}  c6 {[%clk 0:03:00]} 9. b4 {[%clk 0:03:01]}  Re8 {[%clk 0:03:00]} 10. e4 {[%clk 0:03:00]}  Nf8 {[%clk 0:03:00]} 11. h3 {[%clk 0:03:01]}  Ne6 {[%clk 0:02:58]} 12. Be3 {[%clk 0:03:01]}  Qc7 {[%clk 0:02:57]} 13. a4 {[%clk 0:03:00]}  Bd7 {[%clk 0:02:51]} 14. a5 {[%clk 0:03:00]}  b6 {[%clk 0:02:49]} 15. a6 {[%clk 0:02:57]}  Rad8 {[%clk 0:02:47]} 16. b5 {[%clk 0:02:57]}  Nc5 {[%clk 0:02:42]} 17. bxc6 {[%clk 0:02:47]}  Bxc6 {[%clk 0:02:42]} 18. Nd5 {[%clk 0:02:47]}  Nxd5 {[%clk 0:02:34]} 19. cxd5 {[%clk 0:02:43]}  Bd7 {[%clk 0:02:33]} 20. Rc1 {[%clk 0:02:33]}  Qc8 {[%clk 0:02:31]} 21. d4 {[%clk 0:02:27]}  exd4 {[%clk 0:02:30]} 22. Nxd4 {[%clk 0:02:26]}  Qxa6 {[%clk 0:02:29]} 23. Nc6 {[%clk 0:02:23]}  Bxc6 {[%clk 0:02:24]} 24. dxc6 {[%clk 0:02:23]}  Qc8 {[%clk 0:02:25]} 25. Bg5 {[%clk 0:02:09]}  f6 {[%clk 0:02:21]} 26. Qd5+ {[%clk 0:02:08]}  Qe6 {[%clk 0:02:17]} 27. Be3 {[%clk 0:01:57]}  f5 {[%clk 0:01:55]} 28. Rfd1 {[%clk 0:01:48]}  fxe4 {[%clk 0:01:54]} 29. Bxc5 {[%clk 0:01:30]}  Qxd5 {[%clk 0:01:39]} 30. Rxd5 {[%clk 0:01:27]}  dxc5 {[%clk 0:00:57]} 31. Bxe4 {[%clk 0:01:25]}  Rc8 {[%clk 0:00:47]} 32. Rc4 {[%clk 0:01:04]}  Rxc6 {[%clk 0:00:38]} 33. Rd7 {[%clk 0:00:57]}  Rcc8 {[%clk 0:00:31]} 34. Bd5+ {[%clk 0:00:56]}  Kh8 {[%clk 0:00:31]} 35. Rxa7 {[%clk 0:00:56]}  Rcd8 {[%clk 0:00:28]} 36. Bc6 {[%clk 0:00:51]}  Rf8 {[%clk 0:00:26]} 37. Rf4 {[%clk 0:00:33]}  Bd4 {[%clk 0:00:21]} 38. Raf7 {[%clk 0:00:25]}  Rxf7 {[%clk 0:00:20]} 39. Rxf7 {[%clk 0:00:26]}  Rc8 {[%clk 0:00:19]} 40. Bb5 {[%clk 0:00:25]}  Rb8 {[%clk 0:00:18]} 41. Kg2 {[%clk 0:00:24]}  h5 {[%clk 0:00:17]} 42. f4 {[%clk 0:00:24]}  Ra8 {[%clk 0:00:15]} 43. g4 {[%clk 0:00:21]}  hxg4 {[%clk 0:00:15]} 44. hxg4 {[%clk 0:00:21]}  Ra2+ {[%clk 0:00:13]} 45. Kf3 {[%clk 0:00:20]}  Rf2+ {[%clk 0:00:13]} 46. Ke4 {[%clk 0:00:20]}  Rb2 {[%clk 0:00:10]} 47. Bd3 {[%clk 0:00:17]}  Rd2 {[%clk 0:00:09]} 48. Bb5 {[%clk 0:00:15]}  Rb2 {[%clk 0:00:09]} 49. Bd3 {[%clk 0:00:15]}  Rb4 {[%clk 0:00:09]} 50. Kd5 {[%clk 0:00:14]}  Kg8 {[%clk 0:00:08]} 51. Bxg6 {[%clk 0:00:13]}  Bg7 {[%clk 0:00:08]} 52. Rf5 {[%clk 0:00:12]}  Rd4+ {[%clk 0:00:07]} 53. Ke6 {[%clk 0:00:11]}  b5 {[%clk 0:00:06]} 54. Bf7+ {[%clk 0:00:11]}  Kh7 {[%clk 0:00:04]} 55. Rh5+ {[%clk 0:00:11]}  Bh6 {[%clk 0:00:04]} 56. g5 {[%clk 0:00:11]}  Rxf4 {[%clk 0:00:05]} 57. Rxh6+ {[%clk 0:00:10]}  Kg7 {[%clk 0:00:05]} 58. Rg6+ {[%clk 0:00:09]}  Kh7 {[%clk 0:00:04]} 59. Rf6 {[%clk 0:00:09]}  Re4+ {[%clk 0:00:04]} 60. Kf5 {[%clk 0:00:09]}  Rd4 {[%clk 0:00:03]} 61. Bh5 {[%clk 0:00:08]}  Rd5+ {[%clk 0:00:01]} 62. Kf4 {[%clk 0:00:08]}  Rd4+ {[%clk 0:00:01]} 63. Ke5 {[%clk 0:00:08]}  b4 {[%clk 0:00:02]} 64. Rf7+ {[%clk 0:00:08]}  Kg8 {[%clk 0:00:02]} 65. g6 {[%clk 0:00:08]}  b3 {[%clk 0:00:03]} 66. Rb7 {[%clk 0:00:08]}  Rh4 {[%clk 0:00:02]} 67. Bf3 {[%clk 0:00:08]}  Rh3 {[%clk 0:00:01]} 68. Bd5+ {[%clk 0:00:08]}  Kf8 {[%clk 0:00:02]} 69. g7+ {[%clk 0:00:08]}  Ke8 {[%clk 0:00:02]} 70. g8=Q# {[%clk 0:00:09]} 1-0


[Site "https://www.chess.com"]

[Event "Titled Tuesday Blitz June 20 Late 2023"]
[White "Sala, Giulia"]
[Black "Barria Santos, Jose Guilherme"]
[WhiteFideId "2840451"]
[BlackFideId "1939300"]
[WhiteElo "1769"]
[BlackElo "2266"]
[Result "0-1"]
[Round "2"]
[TimeControl "180+2"]
[Date "2023.06.20"]
[WhiteClock "0:01:38"]
[BlackClock "0:00:41"]
[Board "160"]

1. d4 {[%clk 0:03:00]}  Nf6 {[%clk 0:02:59]} 2. Bf4 {[%clk 0:03:00]}  d5 {[%clk 0:02:54]} 3. e3 {[%clk 0:03:00]}  c5 {[%clk 0:02:55]} 4. dxc5 {[%clk 0:02:59]}  Nc6 {[%clk 0:02:53]} 5. Bb5 {[%clk 0:02:59]}  Bg4 {[%clk 0:02:50]} 6. Qd4 {[%clk 0:02:55]}  Bd7 {[%clk 0:02:42]} 7. Bxc6 {[%clk 0:02:53]}  Bxc6 {[%clk 0:02:43]} 8. Nc3 {[%clk 0:02:52]}  a5 {[%clk 0:02:40]} 9. Nf3 {[%clk 0:02:51]}  e6 {[%clk 0:02:40]} 10. O-O {[%clk 0:02:50]}  Nd7 {[%clk 0:02:38]} 11. Bd6 {[%clk 0:02:48]}  Qf6 {[%clk 0:02:27]} 12. Bxf8 {[%clk 0:02:39]}  Kxf8 {[%clk 0:02:24]} 13. a3 {[%clk 0:02:37]}  e5 {[%clk 0:02:20]} 14. Qd2 {[%clk 0:02:31]}  d4 {[%clk 0:02:15]} 15. exd4 {[%clk 0:02:25]}  Bxf3 {[%clk 0:02:16]} 16. gxf3 {[%clk 0:02:23]}  exd4 {[%clk 0:01:56]} 17. Ne4 {[%clk 0:02:21]}  Qe5 {[%clk 0:01:22]} 18. b4 {[%clk 0:02:21]}  h5 {[%clk 0:01:17]} 19. c3 {[%clk 0:02:17]}  Rh6 {[%clk 0:01:06]} 20. Qxd4 {[%clk 0:02:07]}  Rg6+ {[%clk 0:01:06]} 21. Ng3 {[%clk 0:02:04]}  Qxd4 {[%clk 0:01:04]} 22. cxd4 {[%clk 0:02:03]}  h4 {[%clk 0:01:05]} 23. Rfe1 {[%clk 0:02:01]}  hxg3 {[%clk 0:01:04]} 24. hxg3 {[%clk 0:02:02]}  Rg5 {[%clk 0:01:01]} 25. b5 {[%clk 0:01:59]}  Rd5 {[%clk 0:01:00]} 26. Red1 {[%clk 0:01:57]}  Rd8 {[%clk 0:00:59]} 27. Rac1 {[%clk 0:01:51]}  Nxc5 {[%clk 0:00:56]} 28. Kg2 {[%clk 0:01:48]}  Ne6 {[%clk 0:00:56]} 29. f4 {[%clk 0:01:44]}  g6 {[%clk 0:00:56]} 30. g4 {[%clk 0:01:43]}  Nxf4+ {[%clk 0:00:56]} 31. Kf3 {[%clk 0:01:43]}  Ne6 {[%clk 0:00:57]} 32. Ke4 {[%clk 0:01:43]}  Rxd4+ {[%clk 0:00:57]} 33. Rxd4 {[%clk 0:01:44]}  Rxd4+ {[%clk 0:00:58]} 34. Ke5 {[%clk 0:01:45]}  Rxg4 {[%clk 0:00:58]} 35. Rc8+ {[%clk 0:01:43]}  Kg7 {[%clk 0:00:58]} 36. Rb8 {[%clk 0:01:44]}  Rg5+ {[%clk 0:00:57]} 37. Kd6 {[%clk 0:01:42]}  Rxb5 {[%clk 0:00:58]} 38. Ke7 {[%clk 0:01:42]}  Rb3 {[%clk 0:00:53]} 39. a4 {[%clk 0:01:42]}  Rb4 {[%clk 0:00:49]} 40. f3 {[%clk 0:01:42]}  Nd4 {[%clk 0:00:49]} 41. Ke8 {[%clk 0:01:38]}  Nxf3 {[%clk 0:00:47]} 42. Rc8 {[%clk 0:01:37]}  Rxa4 {[%clk 0:00:45]} 43. Rc7 {[%clk 0:01:38]}  Re4+ {[%clk 0:00:41]} 44. Kd8 {[%clk 0:01:38]} 0-1


[Site "https://www.chess.com"]

[Event "Titled Tuesday Blitz June 20 Late 2023"]
[White "Araujo Sanchez, Josue"]
[Black "StarkyNZ"]
[WhiteFideId "6416896"]
[WhiteElo "2417"]
[BlackElo "2271"]
[Result "1-0"]
[Round "2"]
[TimeControl "180+2"]
[Date "2023.06.20"]
[WhiteClock "0:01:43"]
[BlackClock "0:00:39"]
[Board "161"]

1. Nf3 {[%clk 0:03:00]}  Nf6 {[%clk 0:02:59]} 2. c4 {[%clk 0:03:00]}  c5 {[%clk 0:02:58]} 3. d4 {[%clk 0:02:59]}  cxd4 {[%clk 0:02:59]} 4. Nxd4 {[%clk 0:03:00]}  g6 {[%clk 0:03:00]} 5. Nc3 {[%clk 0:02:59]}  Bg7 {[%clk 0:03:00]} 6. g3 {[%clk 0:02:56]}  O-O {[%clk 0:03:00]} 7. Bg2 {[%clk 0:02:56]}  a6 {[%clk 0:03:01]} 8. O-O {[%clk 0:02:55]}  Qc7 {[%clk 0:03:01]} 9. b3 {[%clk 0:02:54]}  d6 {[%clk 0:03:01]} 10. Bb2 {[%clk 0:02:54]}  e6 {[%clk 0:02:59]} 11. Rc1 {[%clk 0:02:53]}  Nc6 {[%clk 0:02:59]} 12. Nd5 {[%clk 0:02:52]}  exd5 {[%clk 0:02:32]} 13. cxd5 {[%clk 0:02:37]}  Nxd5 {[%clk 0:02:14]} 14. Bxd5 {[%clk 0:02:36]}  Bd7 {[%clk 0:02:13]} 15. Qd2 {[%clk 0:02:32]}  Rac8 {[%clk 0:02:06]} 16. Rfd1 {[%clk 0:02:28]}  Rfd8 {[%clk 0:02:05]} 17. Nxc6 {[%clk 0:02:19]}  Bxc6 {[%clk 0:02:04]} 18. Bxg7 {[%clk 0:02:14]}  Kxg7 {[%clk 0:02:05]} 19. Rc4 {[%clk 0:02:11]}  Qe7 {[%clk 0:01:59]} 20. Rdc1 {[%clk 0:02:09]}  Qd7 {[%clk 0:01:03]} 21. Bxc6 {[%clk 0:01:59]}  Rxc6 {[%clk 0:01:03]} 22. Rxc6 {[%clk 0:01:56]}  bxc6 {[%clk 0:01:03]} 23. Qc3+ {[%clk 0:01:57]}  Kg8 {[%clk 0:01:02]} 24. Qxc6 {[%clk 0:01:58]}  Qf5 {[%clk 0:00:51]} 25. Qxa6 {[%clk 0:01:56]}  Re8 {[%clk 0:00:52]} 26. e3 {[%clk 0:01:51]}  Re6 {[%clk 0:00:50]} 27. Rd1 {[%clk 0:01:45]}  d5 {[%clk 0:00:49]} 28. Qa8+ {[%clk 0:01:42]}  Kg7 {[%clk 0:00:47]} 29. Qxd5 {[%clk 0:01:43]}  Re5 {[%clk 0:00:48]} 30. Qd4 {[%clk 0:01:43]}  Kh6 {[%clk 0:00:39]} 31. Qf4+ {[%clk 0:01:43]} 1-0


[Site "https://www.chess.com"]

[Event "Titled Tuesday Blitz June 20 Late 2023"]
[White "Francisco_Ferrari"]
[Black "Reprintsev, Alexander"]
[BlackFideId "14100541"]
[WhiteElo "2247"]
[BlackElo "2229"]
[Result "0-1"]
[Round "2"]
[TimeControl "180+2"]
[Date "2023.06.20"]
[WhiteClock "0:00:06"]
[BlackClock "0:01:12"]
[Board "164"]

1. c4 {[%clk 0:02:52]}  e5 {[%clk 0:02:58]} 2. Nc3 {[%clk 0:02:52]}  Bb4 {[%clk 0:02:58]} 3. g3 {[%clk 0:02:50]}  Bxc3 {[%clk 0:02:53]} 4. bxc3 {[%clk 0:02:51]}  d5 {[%clk 0:02:52]} 5. cxd5 {[%clk 0:02:42]}  Qxd5 {[%clk 0:02:51]} 6. f3 {[%clk 0:02:26]}  Nf6 {[%clk 0:02:39]} 7. e4 {[%clk 0:02:22]}  Qc5 {[%clk 0:02:36]} 8. Ne2 {[%clk 0:02:08]}  Qa5 {[%clk 0:02:25]} 9. Bg2 {[%clk 0:02:03]}  c5 {[%clk 0:02:23]} 10. O-O {[%clk 0:02:02]}  Nc6 {[%clk 0:02:23]} 11. d4 {[%clk 0:01:53]}  cxd4 {[%clk 0:02:20]} 12. cxd4 {[%clk 0:01:54]}  exd4 {[%clk 0:02:21]} 13. Nxd4 {[%clk 0:01:42]}  Qc3 {[%clk 0:02:17]} 14. Nb3 {[%clk 0:01:41]}  O-O {[%clk 0:02:15]} 15. Ba3 {[%clk 0:01:26]}  Rd8 {[%clk 0:02:13]} 16. Qe2 {[%clk 0:01:12]}  Nd4 {[%clk 0:02:07]} 17. Qb2 {[%clk 0:00:51]}  Qxb2 {[%clk 0:02:03]} 18. Bxb2 {[%clk 0:00:52]}  Nxb3 {[%clk 0:02:03]} 19. axb3 {[%clk 0:00:24]}  Be6 {[%clk 0:02:02]} 20. Ra3 {[%clk 0:00:18]}  a6 {[%clk 0:01:55]} 21. f4 {[%clk 0:00:14]}  Rd3 {[%clk 0:01:53]} 22. Rc1 {[%clk 0:00:10]}  Rxb3 {[%clk 0:01:50]} 23. Rxb3 {[%clk 0:00:10]}  Bxb3 {[%clk 0:01:51]} 24. Rc7 {[%clk 0:00:10]}  b5 {[%clk 0:01:43]} 25. e5 {[%clk 0:00:10]}  Nd5 {[%clk 0:01:39]} 26. Rd7 {[%clk 0:00:11]}  Nb6 {[%clk 0:01:37]} 27. Rd6 {[%clk 0:00:10]}  Rb8 {[%clk 0:01:33]} 28. Bd4 {[%clk 0:00:11]}  Nc4 {[%clk 0:01:32]} 29. Rxa6 {[%clk 0:00:11]}  g5 {[%clk 0:01:31]} 30. Ra7 {[%clk 0:00:11]}  gxf4 {[%clk 0:01:30]} 31. gxf4 {[%clk 0:00:12]}  Nd2 {[%clk 0:01:28]} 32. f5 {[%clk 0:00:10]}  Bc4 {[%clk 0:01:26]} 33. e6 {[%clk 0:00:08]}  fxe6 {[%clk 0:01:25]} 34. Rg7+ {[%clk 0:00:07]}  Kf8 {[%clk 0:01:21]} 35. Rxh7 {[%clk 0:00:07]}  exf5 {[%clk 0:01:18]} 36. Rh8+ {[%clk 0:00:05]}  Bg8 {[%clk 0:01:18]} 37. Bd5 {[%clk 0:00:06]}  Ke7 {[%clk 0:01:16]} 38. Rxg8 {[%clk 0:00:05]}  Rxg8+ {[%clk 0:01:16]} 39. Bxg8 {[%clk 0:00:06]}  Nf3+ {[%clk 0:01:17]} 40. Kf2 {[%clk 0:00:06]}  Nxd4 {[%clk 0:01:15]} 41. Ke3 {[%clk 0:00:07]}  Ne6 {[%clk 0:01:15]} 42. Bh7 {[%clk 0:00:07]}  Kf6 {[%clk 0:01:15]} 43. Bg8 {[%clk 0:00:06]}  f4+ {[%clk 0:01:12]} 44. Kf3 {[%clk 0:00:06]}  b4 {[%clk 0:01:11]} 45. Bxe6 {[%clk 0:00:04]}  Kxe6 {[%clk 0:01:11]} 46. Kxf4 {[%clk 0:00:05]}  b3 {[%clk 0:01:12]} 47. Ke3 {[%clk 0:00:05]}  b2 {[%clk 0:01:12]} 48. Kd2 {[%clk 0:00:06]}  b1=Q {[%clk 0:01:12]} 0-1


[Site "https://www.chess.com"]

[Event "Titled Tuesday Blitz June 20 Late 2023"]
[White "Kielinkei"]
[Black "Kornyukov, Alexey"]
[BlackFideId "4150457"]
[WhiteElo "2459"]
[BlackElo "2352"]
[Result "1/2-1/2"]
[Round "2"]
[TimeControl "180+2"]
[Date "2023.06.20"]
[WhiteClock "0:00:21"]
[BlackClock "0:00:05"]
[Board "173"]

1. d4 {[%clk 0:02:57]}  d5 {[%clk 0:02:55]} 2. c4 {[%clk 0:02:55]}  e6 {[%clk 0:02:55]} 3. Nc3 {[%clk 0:02:54]}  c6 {[%clk 0:02:55]} 4. e3 {[%clk 0:02:54]}  Nf6 {[%clk 0:02:55]} 5. Nf3 {[%clk 0:02:53]}  Nbd7 {[%clk 0:02:55]} 6. Be2 {[%clk 0:02:54]}  dxc4 {[%clk 0:02:53]} 7. a4 {[%clk 0:02:53]}  Bb4 {[%clk 0:02:38]} 8. O-O {[%clk 0:02:52]}  Qa5 {[%clk 0:02:26]} 9. Bd2 {[%clk 0:02:50]}  O-O {[%clk 0:02:23]} 10. Bxc4 {[%clk 0:02:47]}  c5 {[%clk 0:02:21]} 11. Nb5 {[%clk 0:02:34]}  Rd8 {[%clk 0:02:10]} 12. Bxb4 {[%clk 0:02:25]}  Qxb4 {[%clk 0:02:11]} 13. Qc2 {[%clk 0:02:18]}  Nb6 {[%clk 0:01:59]} 14. Be2 {[%clk 0:02:14]}  cxd4 {[%clk 0:01:48]} 15. Nfxd4 {[%clk 0:02:10]}  e5 {[%clk 0:01:45]} 16. Nf3 {[%clk 0:02:06]}  e4 {[%clk 0:01:13]} 17. Nfd4 {[%clk 0:02:03]}  Bd7 {[%clk 0:01:08]} 18. Qc3 {[%clk 0:01:55]}  Qxc3 {[%clk 0:00:56]} 19. Nxc3 {[%clk 0:01:54]}  Rac8 {[%clk 0:00:53]} 20. Rfc1 {[%clk 0:01:51]}  a6 {[%clk 0:00:49]} 21. b3 {[%clk 0:01:49]}  Nbd5 {[%clk 0:00:42]} 22. Nxd5 {[%clk 0:01:44]}  Nxd5 {[%clk 0:00:43]} 23. Bc4 {[%clk 0:01:40]}  Nb4 {[%clk 0:00:38]} 24. Kf1 {[%clk 0:01:38]}  Kf8 {[%clk 0:00:32]} 25. Ke2 {[%clk 0:01:35]}  Rc7 {[%clk 0:00:16]} 26. Kd2 {[%clk 0:01:26]}  Rdc8 {[%clk 0:00:15]} 27. f3 {[%clk 0:01:18]}  exf3 {[%clk 0:00:14]} 28. gxf3 {[%clk 0:01:19]}  Ke7 {[%clk 0:00:14]} 29. h4 {[%clk 0:00:56]}  g6 {[%clk 0:00:14]} 30. e4 {[%clk 0:00:49]}  Be6 {[%clk 0:00:11]} 31. Bxe6 {[%clk 0:00:43]}  fxe6 {[%clk 0:00:12]} 32. f4 {[%clk 0:00:24]}  Rxc1 {[%clk 0:00:11]} 33. Rxc1 {[%clk 0:00:24]}  Rxc1 {[%clk 0:00:12]} 34. Kxc1 {[%clk 0:00:25]}  Nd3+ {[%clk 0:00:13]} 35. Kd2 {[%clk 0:00:25]}  Nxf4 {[%clk 0:00:13]} 36. Nf3 {[%clk 0:00:23]}  Kd6 {[%clk 0:00:13]} 37. Ke3 {[%clk 0:00:23]}  e5 {[%clk 0:00:11]} 38. b4 {[%clk 0:00:22]}  h6 {[%clk 0:00:09]} 39. Kd2 {[%clk 0:00:20]}  Ne6 {[%clk 0:00:05]} 40. Kd3 {[%clk 0:00:20]}  Nf4+ {[%clk 0:00:03]} 41. Ke3 {[%clk 0:00:20]}  Ng2+ {[%clk 0:00:03]} 42. Kd3 {[%clk 0:00:20]}  Nf4+ {[%clk 0:00:04]} 43. Ke3 {[%clk 0:00:20]}  Ng2+ {[%clk 0:00:05]} 44. Kd3 {[%clk 0:00:21]}  Nf4+ {[%clk 0:00:05]} 1/2-1/2


[Site "https://www.chess.com"]